[Event "Late-Titled-Tuesday-Blitz-October-10-2023"]
[Site "Chess.com"]
[Date "2023.10.10"]
[Round "9"]
[White "Fandorine"]
[Black "Ramosha"]
[Result "1-0"]
[WhiteElo "2922"]
[BlackElo "2625"]
[TimeControl "180+1"]
[EndTime "15:35:31 PDT"]
[Termination "Fandorine won by resignation"]

1. g3 {[%clk 0:03:00.9]} 1... e5 {[%clk 0:02:59.2]} 2. c4 {[%clk 0:03:00.1]}
2... Nf6 {[%clk 0:02:59.6]} 3. Bg2 {[%clk 0:02:58.7]} 3... d5 {[%clk 0:02:59.8]}
4. cxd5 {[%clk 0:02:58.7]} 4... Nxd5 {[%clk 0:03:00.7]} 5. Nf3 {[%clk
0:02:59.2]} 5... Nc6 {[%clk 0:03:00.6]} 6. O-O {[%clk 0:02:59.9]} 6... Be7
{[%clk 0:03:00.3]} 7. d4 {[%clk 0:03:00.2]} 7... e4 {[%clk 0:02:59.5]} 8. Ne5
{[%clk 0:03:00.7]} 8... Nxe5 {[%clk 0:02:52.7]} 9. dxe5 {[%clk 0:03:00.7]} 9...
Bf5 {[%clk 0:02:53.3]} 10. Bxe4 {[%clk 0:02:56.7]} 10... Bxe4 {[%clk 0:02:53.2]}
11. Qa4+ {[%clk 0:02:56.9]} 11... c6 {[%clk 0:02:53]} 12. Qxe4 {[%clk
0:02:57.2]} 12... O-O {[%clk 0:02:53.9]} 13. Rd1 {[%clk 0:02:49.5]} 13... Re8
{[%clk 0:02:53]} 14. Qc2 {[%clk 0:02:32]} 14... Qb6 {[%clk 0:02:36.2]} 15. Nc3
{[%clk 0:02:21.6]} 15... Nb4 {[%clk 0:02:34.2]} 16. Qf5 {[%clk 0:02:18]} 16...
g6 {[%clk 0:02:33.9]} 17. Qf3 {[%clk 0:02:17.6]} 17... Nc2 {[%clk 0:02:31.7]}
18. Rb1 {[%clk 0:02:15.2]} 18... Nd4 {[%clk 0:02:30.9]} 19. Qg4 {[%clk
0:02:00.7]} 19... Bc5 {[%clk 0:02:26.8]} 20. b4 {[%clk 0:01:49.7]} 20... Nxe2+
{[%clk 0:02:07.3]} 21. Qxe2 {[%clk 0:01:44.9]} 21... Bd4 {[%clk 0:02:06.7]} 22.
Na4 {[%clk 0:01:42.3]} 22... Re6 {[%clk 0:01:54.3]} 1-0

[Event "Late-Titled-Tuesday-Blitz-October-10-2023"]
[Site "Chess.com"]
[Date "2023.10.10"]
[Round "9"]
[White "arminmusovic"]
[Black "wild3000"]
[Result "1-0"]
[WhiteElo "2491"]
[BlackElo "2315"]
[TimeControl "180+1"]
[EndTime "15:35:40 PDT"]
[Termination "arminmusovic won by resignation"]

1. a3 {[%clk 0:02:58]} 1... c5 {[%clk 0:02:34.6]} 2. Nc3 {[%clk 0:02:58.9]} 2...
d5 {[%clk 0:02:33.9]} 3. e4 {[%clk 0:02:59.2]} 3... d4 {[%clk 0:02:33.8]} 4.
Nce2 {[%clk 0:02:59.5]} 4... e5 {[%clk 0:02:33.8]} 5. Ng3 {[%clk 0:03:00.1]}
5... Nc6 {[%clk 0:02:30.1]} 6. Bb5 {[%clk 0:03:00.2]} 6... Bd7 {[%clk
0:02:28.3]} 7. Bxc6 {[%clk 0:03:01.1]} 7... Bxc6 {[%clk 0:02:28.2]} 8. d3 {[%clk
0:03:02]} 8... Bd6 {[%clk 0:02:16.1]} 9. N1e2 {[%clk 0:02:57.2]} 9... Ne7 {[%clk
0:02:15.8]} 10. O-O {[%clk 0:02:56.2]} 10... O-O {[%clk 0:02:15.8]} 11. f4
{[%clk 0:02:56.7]} 11... exf4 {[%clk 0:02:11]} 12. Bxf4 {[%clk 0:02:56]} 12...
Qc7 {[%clk 0:02:07.5]} 13. Qd2 {[%clk 0:02:53]} 13... Bxf4 {[%clk 0:02:00.1]}
14. Rxf4 {[%clk 0:02:52.2]} 14... Ng6 {[%clk 0:01:59.3]} 15. Rf2 {[%clk
0:02:52.3]} 15... Rad8 {[%clk 0:01:54.2]} 16. Raf1 {[%clk 0:02:50.6]} 16... f6
{[%clk 0:01:54]} 17. Nf5 {[%clk 0:02:49.3]} 17... Qe5 {[%clk 0:01:42.6]} 18.
Neg3 {[%clk 0:02:42.2]} 18... c4 {[%clk 0:01:40.3]} 19. Nh5 {[%clk 0:02:40]}
19... Rf7 {[%clk 0:01:35]} 20. Nfxg7 {[%clk 0:02:33.2]} 20... Rxg7 {[%clk
0:01:34.5]} 21. Nxg7 {[%clk 0:02:34.1]} 21... Kxg7 {[%clk 0:01:34.7]} 22. Rxf6
{[%clk 0:02:34.8]} 22... cxd3 {[%clk 0:01:24.7]} 23. Rf7+ {[%clk 0:02:33.4]}
23... Kh8 {[%clk 0:01:24.9]} 24. Qh6 {[%clk 0:02:29.1]} 1-0

[Event "Late-Titled-Tuesday-Blitz-October-10-2023"]
[Site "Chess.com"]
[Date "2023.10.10"]
[Round "9"]
[White "Levanzovsky"]
[Black "bettercallcafu"]
[Result "0-1"]
[WhiteElo "2453"]
[BlackElo "2660"]
[TimeControl "180+1"]
[EndTime "15:36:50 PDT"]
[Termination "bettercallcafu won by resignation"]

1. e4 {[%clk 0:02:54.4]} 1... e6 {[%clk 0:03:00.9]} 2. d4 {[%clk 0:02:53.2]}
2... d5 {[%clk 0:03:01.8]} 3. e5 {[%clk 0:02:53.1]} 3... c5 {[%clk 0:03:00.6]}
4. c3 {[%clk 0:02:54]} 4... Nc6 {[%clk 0:02:57.6]} 5. Nf3 {[%clk 0:02:54.7]}
5... Qb6 {[%clk 0:02:40.6]} 6. a3 {[%clk 0:02:54.6]} 6... c4 {[%clk 0:02:40.6]}
7. Be2 {[%clk 0:02:54]} 7... Bd7 {[%clk 0:02:41.3]} 8. Nbd2 {[%clk 0:02:54.4]}
8... f5 {[%clk 0:02:41.6]} 9. Rb1 {[%clk 0:02:49.3]} 9... Qc7 {[%clk 0:02:41]}
10. O-O {[%clk 0:02:46.5]} 10... Nge7 {[%clk 0:02:40.9]} 11. b4 {[%clk 0:02:43]}
11... h6 {[%clk 0:02:37.4]} 12. Ne1 {[%clk 0:02:36.8]} 12... O-O-O {[%clk
0:02:35.1]} 13. a4 {[%clk 0:02:32.2]} 13... g5 {[%clk 0:02:35.1]} 14. a5 {[%clk
0:02:31.7]} 14... f4 {[%clk 0:02:30.1]} 15. Bh5 {[%clk 0:02:18.2]} 15... Nf5
{[%clk 0:02:29.2]} 16. Ra1 {[%clk 0:02:13.6]} 16... Nce7 {[%clk 0:02:21.4]} 17.
Nc2 {[%clk 0:01:51]} 17... Ng7 {[%clk 0:02:22]} 18. Na3 {[%clk 0:01:47.8]} 18...
Nxh5 {[%clk 0:02:21.7]} 19. Qxh5 {[%clk 0:01:48.7]} 19... Be8 {[%clk 0:02:21.9]}
20. Qg4 {[%clk 0:01:47.9]} 20... Nf5 {[%clk 0:02:15.8]} 21. Bb2 {[%clk
0:01:44.6]} 21... Be7 {[%clk 0:02:14.5]} 22. b5 {[%clk 0:01:43.4]} 22... h5
{[%clk 0:02:14.3]} 23. Qd1 {[%clk 0:01:42.8]} 23... Qd7 {[%clk 0:02:10]} 24. Qe2
{[%clk 0:01:35.1]} 24... g4 {[%clk 0:02:08.6]} 25. f3 {[%clk 0:01:20.6]} 25...
Ne3 {[%clk 0:02:05.7]} 26. Rfb1 {[%clk 0:01:20.4]} 26... Bg6 {[%clk 0:02:05.1]}
27. Nf1 {[%clk 0:01:15.8]} 27... Bd3 {[%clk 0:02:04.7]} 28. Qf2 {[%clk
0:01:12.5]} 28... Nxf1 {[%clk 0:02:03.6]} 29. Rxf1 {[%clk 0:01:13.4]} 29... gxf3
{[%clk 0:02:03.8]} 30. Qxf3 {[%clk 0:01:11.8]} 30... Bxf1 {[%clk 0:02:04.1]} 31.
Kxf1 {[%clk 0:01:11.7]} 31... Rdf8 {[%clk 0:02:04.7]} 32. a6 {[%clk 0:01:08.2]}
32... b6 {[%clk 0:02:04.2]} 33. Nxc4 {[%clk 0:01:07.5]} 33... Qxb5 {[%clk
0:02:00]} 34. Qe2 {[%clk 0:00:47.7]} 34... Qxc4 {[%clk 0:01:59.3]} 0-1

[Event "Late-Titled-Tuesday-Blitz-October-10-2023"]
[Site "Chess.com"]
[Date "2023.10.10"]
[Round "9"]
[White "blueryder"]
[Black "falzehope0"]
[Result "0-1"]
[WhiteElo "2175"]
[BlackElo "2342"]
[TimeControl "180+1"]
[EndTime "15:36:57 PDT"]
[Termination "falzehope0 won by checkmate"]

1. e4 {[%clk 0:02:57.2]} 1... d5 {[%clk 0:03:00.1]} 2. d4 {[%clk 0:02:55.7]}
2... dxe4 {[%clk 0:02:59.8]} 3. Nc3 {[%clk 0:02:55.5]} 3... Nf6 {[%clk
0:02:59.1]} 4. f3 {[%clk 0:02:55.6]} 4... exf3 {[%clk 0:02:58.3]} 5. Nxf3 {[%clk
0:02:55.6]} 5... g6 {[%clk 0:02:58.3]} 6. Bc4 {[%clk 0:02:54.6]} 6... Bg7 {[%clk
0:02:58.5]} 7. O-O {[%clk 0:02:54.2]} 7... O-O {[%clk 0:02:58.9]} 8. Qe1 {[%clk
0:02:54.4]} 8... c5 {[%clk 0:02:57.5]} 9. dxc5 {[%clk 0:02:48.4]} 9... Qa5
{[%clk 0:02:56.4]} 10. Bb3 {[%clk 0:02:44.5]} 10... Qxc5+ {[%clk 0:02:55.7]} 11.
Be3 {[%clk 0:02:43]} 11... Qa5 {[%clk 0:02:52.6]} 12. Qh4 {[%clk 0:02:38.4]}
12... Qh5 {[%clk 0:02:47.8]} 13. Qg3 {[%clk 0:02:31.4]} 13... Nc6 {[%clk
0:02:42.7]} 14. Rad1 {[%clk 0:02:20.7]} 14... Ng4 {[%clk 0:02:41.8]} 15. Bf4
{[%clk 0:02:06.9]} 15... e5 {[%clk 0:02:34.5]} 16. Bc1 {[%clk 0:02:02.9]} 16...
e4 {[%clk 0:02:30]} 17. Nxe4 {[%clk 0:02:00.3]} 17... Bf5 {[%clk 0:02:22.2]} 18.
Nd6 {[%clk 0:01:51.5]} 18... Bc8 {[%clk 0:02:07.5]} 19. h3 {[%clk 0:01:45]}
19... Qc5+ {[%clk 0:02:04.9]} 20. Kh1 {[%clk 0:01:42.2]} 20... Nge5 {[%clk
0:02:00.1]} 21. Nxc8 {[%clk 0:01:00.3]} 21... Raxc8 {[%clk 0:01:57.5]} 22. Nxe5
{[%clk 0:01:00.1]} 22... Nxe5 {[%clk 0:01:56]} 23. Bf4 {[%clk 0:00:57.5]} 23...
Rfd8 {[%clk 0:01:48.1]} 24. Rxd8+ {[%clk 0:00:55]} 24... Rxd8 {[%clk 0:01:47.7]}
25. Bxe5 {[%clk 0:00:50.2]} 25... Bxe5 {[%clk 0:01:47]} 26. Bxf7+ {[%clk
0:00:49.4]} 26... Kg7 {[%clk 0:01:44]} 27. Qf3 {[%clk 0:00:46.4]} 27... Rf8
{[%clk 0:01:42.7]} 28. Qb3 {[%clk 0:00:43.8]} 28... Qc7 {[%clk 0:01:39.2]} 29.
Bd5 {[%clk 0:00:40.8]} 29... Rxf1# {[%clk 0:01:37.3]} 0-1

[Event "Late-Titled-Tuesday-Blitz-October-10-2023"]
[Site "Chess.com"]
[Date "2023.10.10"]
[Round "9"]
[White "rdarruda"]
[Black "Zampronha1971"]
[Result "0-1"]
[WhiteElo "2493"]
[BlackElo "2330"]
[TimeControl "180+1"]
[EndTime "15:37:08 PDT"]
[Termination "Zampronha1971 won by resignation"]

1. d4 {[%clk 0:03:00.9]} 1... Nf6 {[%clk 0:02:58.9]} 2. Nf3 {[%clk 0:02:58.9]}
2... e6 {[%clk 0:02:58.8]} 3. c4 {[%clk 0:02:57.9]} 3... c5 {[%clk 0:02:55.3]}
4. d5 {[%clk 0:02:56.9]} 4... exd5 {[%clk 0:02:56.2]} 5. cxd5 {[%clk 0:02:57.1]}
5... d6 {[%clk 0:02:56.8]} 6. Nc3 {[%clk 0:02:57.1]} 6... g6 {[%clk 0:02:57.3]}
7. e4 {[%clk 0:02:57.2]} 7... Bg7 {[%clk 0:02:57.8]} 8. Be2 {[%clk 0:02:57.5]}
8... O-O {[%clk 0:02:58.4]} 9. O-O {[%clk 0:02:57.6]} 9... Re8 {[%clk
0:02:58.3]} 10. Nd2 {[%clk 0:02:57.3]} 10... a6 {[%clk 0:02:55.7]} 11. a4 {[%clk
0:02:56.1]} 11... Nbd7 {[%clk 0:02:56.2]} 12. Nc4 {[%clk 0:02:55.3]} 12... Nb6
{[%clk 0:02:52.1]} 13. f3 {[%clk 0:02:51]} 13... Nxc4 {[%clk 0:02:51]} 14. Bxc4
{[%clk 0:02:51.9]} 14... Rb8 {[%clk 0:02:49.4]} 15. Kh1 {[%clk 0:02:47.3]} 15...
Nd7 {[%clk 0:02:49.3]} 16. Re1 {[%clk 0:02:43.1]} 16... Ne5 {[%clk 0:02:49]} 17.
Bf1 {[%clk 0:02:43]} 17... f5 {[%clk 0:02:26.6]} 18. Bf4 {[%clk 0:02:36.7]}
18... Nf7 {[%clk 0:02:24.3]} 19. Qd2 {[%clk 0:02:33.1]} 19... Bd7 {[%clk
0:02:19.6]} 20. exf5 {[%clk 0:02:30.8]} 20... Bxf5 {[%clk 0:02:18.6]} 21. Rxe8+
{[%clk 0:02:28.4]} 21... Qxe8 {[%clk 0:02:18.3]} 22. Re1 {[%clk 0:02:28.9]}
22... Qf8 {[%clk 0:02:05.9]} 23. a5 {[%clk 0:02:26.8]} 23... Re8 {[%clk
0:01:56]} 24. g4 {[%clk 0:02:20.6]} 24... Bd7 {[%clk 0:01:48.4]} 25. Kg2 {[%clk
0:02:11.1]} 25... Rxe1 {[%clk 0:01:45.4]} 26. Qxe1 {[%clk 0:02:10.4]} 26... Ne5
{[%clk 0:01:46]} 27. Bg3 {[%clk 0:02:01.9]} 27... Qxf3+ {[%clk 0:01:42.4]} 28.
Kg1 {[%clk 0:02:01.8]} 28... Nxg4 {[%clk 0:01:23.5]} 29. Ne2 {[%clk 0:02:00.2]}
29... Be5 {[%clk 0:01:15.3]} 30. Bxe5 {[%clk 0:01:56.4]} 30... Nxe5 {[%clk
0:01:14.5]} 31. Qh4 {[%clk 0:01:55.2]} 31... Qg4+ {[%clk 0:01:13.3]} 32. Qxg4
{[%clk 0:01:54.7]} 32... Bxg4 {[%clk 0:01:13.1]} 33. Nc3 {[%clk 0:01:53.1]}
33... Bf5 {[%clk 0:01:10.9]} 34. Kf2 {[%clk 0:01:52.1]} 34... Kf7 {[%clk
0:01:11]} 35. h3 {[%clk 0:01:49.9]} 35... Kf6 {[%clk 0:01:10.4]} 36. Ke3 {[%clk
0:01:49.9]} 36... h6 {[%clk 0:01:10.1]} 37. b3 {[%clk 0:01:44]} 37... g5 {[%clk
0:01:10.1]} 38. Na4 {[%clk 0:01:40.9]} 38... Bc2 {[%clk 0:01:01.5]} 39. Bc4
{[%clk 0:01:36.6]} 39... Nxc4+ {[%clk 0:01:00.5]} 0-1

[Event "Late-Titled-Tuesday-Blitz-October-10-2023"]
[Site "Chess.com"]
[Date "2023.10.10"]
[Round "9"]
[White "sergoy"]
[Black "Ali_rastbod"]
[Result "1-0"]
[WhiteElo "2969"]
[BlackElo "2749"]
[TimeControl "180+1"]
[EndTime "15:37:21 PDT"]
[Termination "sergoy won by resignation"]

1. d4 {[%clk 0:03:00.9]} 1... d5 {[%clk 0:02:59]} 2. c4 {[%clk 0:03:01.3]} 2...
e6 {[%clk 0:02:58.6]} 3. Nf3 {[%clk 0:03:01.7]} 3... Nf6 {[%clk 0:02:58.4]} 4.
Nc3 {[%clk 0:03:01.4]} 4... h6 {[%clk 0:02:54.8]} 5. Bf4 {[%clk 0:02:59.7]} 5...
Bb4 {[%clk 0:02:52.4]} 6. a3 {[%clk 0:02:56.1]} 6... Bxc3+ {[%clk 0:02:51.3]} 7.
bxc3 {[%clk 0:02:57]} 7... c5 {[%clk 0:02:31.1]} 8. e3 {[%clk 0:02:54.5]} 8...
Qa5 {[%clk 0:02:30.5]} 9. Qc2 {[%clk 0:02:50.3]} 9... Ne4 {[%clk 0:02:21.7]} 10.
Rc1 {[%clk 0:02:50.2]} 10... cxd4 {[%clk 0:01:51]} 11. exd4 {[%clk 0:02:48.8]}
11... Nc6 {[%clk 0:01:50.4]} 12. Bd3 {[%clk 0:02:46.6]} 12... g5 {[%clk
0:01:43.6]} 13. Be3 {[%clk 0:02:39.2]} 13... g4 {[%clk 0:01:42.1]} 14. Bxe4
{[%clk 0:02:33.6]} 14... dxe4 {[%clk 0:01:40.2]} 15. Nd2 {[%clk 0:02:34.2]}
15... f5 {[%clk 0:01:39.7]} 16. O-O {[%clk 0:02:29]} 16... h5 {[%clk 0:01:37.3]}
17. c5 {[%clk 0:02:25]} 17... Qa6 {[%clk 0:01:29.8]} 18. c4 {[%clk 0:02:19.9]}
18... O-O {[%clk 0:01:17.9]} 19. f3 {[%clk 0:01:50.1]} 19... e5 {[%clk
0:01:03.8]} 20. dxe5 {[%clk 0:01:36.8]} 20... f4 {[%clk 0:01:02.3]} 21. Qxe4
{[%clk 0:01:32.4]} 21... fxe3 {[%clk 0:00:55.2]} 22. Qg6+ {[%clk 0:01:29.9]}
22... Kh8 {[%clk 0:00:55.2]} 23. Qxh5+ {[%clk 0:01:30.5]} 23... Kg8 {[%clk
0:00:55.3]} 24. fxg4 {[%clk 0:01:17.2]} 24... Be6 {[%clk 0:00:44]} 25. Qg6+
{[%clk 0:01:15.7]} 25... Kh8 {[%clk 0:00:44]} 26. Qh6+ {[%clk 0:01:15.6]} 26...
Kg8 {[%clk 0:00:43.3]} 27. Qxe6+ {[%clk 0:01:16.1]} 1-0

[Event "Late-Titled-Tuesday-Blitz-October-10-2023"]
[Site "Chess.com"]
[Date "2023.10.10"]
[Round "9"]
[White "Pomberito2"]
[Black "ElenGajger"]
[Result "1-0"]
[WhiteElo "2478"]
[BlackElo "2372"]
[TimeControl "180+1"]
[EndTime "15:37:36 PDT"]
[Termination "Pomberito2 won by resignation"]

1. d4 {[%clk 0:03:00.9]} 1... Nf6 {[%clk 0:02:59.1]} 2. Nf3 {[%clk 0:03:00.9]}
2... g6 {[%clk 0:02:59]} 3. Bg5 {[%clk 0:03:01]} 3... Bg7 {[%clk 0:02:57.7]} 4.
e3 {[%clk 0:03:01.6]} 4... O-O {[%clk 0:02:57.4]} 5. Nbd2 {[%clk 0:03:01.6]}
5... d5 {[%clk 0:02:53.9]} 6. Bd3 {[%clk 0:03:01.5]} 6... Nbd7 {[%clk
0:02:49.9]} 7. c3 {[%clk 0:03:00.5]} 7... c5 {[%clk 0:02:50.3]} 8. Qe2 {[%clk
0:03:00.3]} 8... b6 {[%clk 0:02:50.3]} 9. h4 {[%clk 0:02:54.4]} 9... Bb7 {[%clk
0:02:50.2]} 10. Ne5 {[%clk 0:02:51.6]} 10... Ne4 {[%clk 0:02:42.6]} 11. Ndf3
{[%clk 0:02:42.1]} 11... Nxe5 {[%clk 0:02:39.1]} 12. dxe5 {[%clk 0:02:41.8]}
12... Nxg5 {[%clk 0:02:19]} 13. hxg5 {[%clk 0:02:39.6]} 13... Qc7 {[%clk
0:02:19.2]} 14. O-O-O {[%clk 0:02:35.1]} 14... Bxe5 {[%clk 0:02:18.5]} 15. Nxe5
{[%clk 0:02:34.7]} 15... Qxe5 {[%clk 0:02:18.2]} 16. f4 {[%clk 0:02:35.2]} 16...
Qg7 {[%clk 0:02:11.7]} 17. Rh6 {[%clk 0:02:31.3]} 17... e5 {[%clk 0:01:58]} 18.
Rdh1 {[%clk 0:02:25.2]} 18... e4 {[%clk 0:01:56.1]} 19. Bc2 {[%clk 0:02:21.6]}
19... f6 {[%clk 0:01:55.3]} 20. f5 {[%clk 0:02:08.5]} 20... fxg5 {[%clk
0:01:53.9]} 21. fxg6 {[%clk 0:02:07]} 21... hxg6 {[%clk 0:01:52.8]} 22. Rh8+
{[%clk 0:02:06.9]} 22... Qxh8 {[%clk 0:01:52.2]} 23. Rxh8+ {[%clk 0:02:05]}
23... Kxh8 {[%clk 0:01:53.1]} 24. Qg4 {[%clk 0:02:03.9]} 24... Rf5 {[%clk
0:01:52.2]} 25. Qh3+ {[%clk 0:02:01.4]} 25... Kg7 {[%clk 0:01:51.7]} 26. Bd1
{[%clk 0:02:01.8]} 26... Rh8 {[%clk 0:01:40.5]} 27. Qg3 {[%clk 0:02:00.8]} 27...
Rh1 {[%clk 0:01:40.5]} 28. Kc2 {[%clk 0:01:58.7]} 28... Ba6 {[%clk 0:01:38.6]}
29. Bg4 {[%clk 0:01:55]} 29... Bd3+ {[%clk 0:01:35.1]} 30. Kb3 {[%clk
0:01:55.1]} 30... Bc4+ {[%clk 0:01:35.4]} 31. Ka3 {[%clk 0:01:54.8]} 31... Rf6
{[%clk 0:01:20.5]} 32. Qc7+ {[%clk 0:01:51.3]} 32... Rf7 {[%clk 0:01:17.5]} 33.
Qe5+ {[%clk 0:01:51]} 33... Kh7 {[%clk 0:01:14.8]} 34. Be6 {[%clk 0:01:46.8]}
34... Rg7 {[%clk 0:01:06.2]} 35. Qxg5 {[%clk 0:01:37.2]} 35... Rh5 {[%clk
0:00:59.3]} 36. Qd8 {[%clk 0:01:30.3]} 36... b5 {[%clk 0:00:54.9]} 37. g4 {[%clk
0:01:25.1]} 37... Re5 {[%clk 0:00:51]} 38. Qh4+ {[%clk 0:01:23.9]} 1-0

[Event "Late-Titled-Tuesday-Blitz-October-10-2023"]
[Site "Chess.com"]
[Date "2023.10.10"]
[Round "9"]
[White "Dedic8"]
[Black "FairChess_on_YouTube"]
[Result "0-1"]
[WhiteElo "2880"]
[BlackElo "3091"]
[TimeControl "180+1"]
[EndTime "15:37:49 PDT"]
[Termination "FairChess_on_YouTube won by resignation"]

1. d4 {[%clk 0:03:00.9]} 1... Nf6 {[%clk 0:02:59.3]} 2. c4 {[%clk 0:03:01.2]}
2... d6 {[%clk 0:02:59]} 3. Nc3 {[%clk 0:03:01.3]} 3... Bf5 {[%clk 0:02:58.5]}
4. g3 {[%clk 0:03:01.2]} 4... Nc6 {[%clk 0:02:55]} 5. Bg2 {[%clk 0:03:00.8]}
5... e5 {[%clk 0:02:55.2]} 6. d5 {[%clk 0:02:43.9]} 6... Ne7 {[%clk 0:02:50.9]}
7. e4 {[%clk 0:02:34.6]} 7... Bd7 {[%clk 0:02:50.8]} 8. Nf3 {[%clk 0:02:32.9]}
8... g6 {[%clk 0:02:46.7]} 9. c5 {[%clk 0:02:27.8]} 9... Bg7 {[%clk 0:02:44.6]}
10. cxd6 {[%clk 0:02:26.2]} 10... cxd6 {[%clk 0:02:45.5]} 11. O-O {[%clk
0:02:26.4]} 11... O-O {[%clk 0:02:38.9]} 12. h3 {[%clk 0:02:26.8]} 12... b5
{[%clk 0:02:33.2]} 13. a3 {[%clk 0:02:23.2]} 13... a5 {[%clk 0:02:33.1]} 14. Qb3
{[%clk 0:02:20.3]} 14... Rb8 {[%clk 0:02:25.6]} 15. Re1 {[%clk 0:02:04.4]} 15...
h6 {[%clk 0:02:11.5]} 16. Qd1 {[%clk 0:01:32.8]} 16... Nh7 {[%clk 0:01:54]} 17.
Bd2 {[%clk 0:01:19.7]} 17... f5 {[%clk 0:01:52.9]} 18. a4 {[%clk 0:01:11.9]}
18... bxa4 {[%clk 0:01:49.7]} 19. Nxa4 {[%clk 0:01:00.1]} 19... fxe4 {[%clk
0:01:47.9]} 20. Rxe4 {[%clk 0:01:01]} 20... Nf6 {[%clk 0:01:46.2]} 21. Re1
{[%clk 0:01:00.1]} 21... Nexd5 {[%clk 0:01:43.6]} 22. Nc3 {[%clk 0:00:51.6]}
22... Nb4 {[%clk 0:01:37.7]} 23. Be3 {[%clk 0:00:51.8]} 23... Bf5 {[%clk
0:01:37.4]} 24. Nh4 {[%clk 0:00:45.9]} 24... Bc2 {[%clk 0:01:33.1]} 25. Qd2
{[%clk 0:00:46.1]} 25... g5 {[%clk 0:01:33]} 26. Nf3 {[%clk 0:00:45.5]} 26...
Bh7 {[%clk 0:01:29.2]} 27. Red1 {[%clk 0:00:35]} 27... Nc2 {[%clk 0:01:23.9]}
28. Ra2 {[%clk 0:00:33.2]} 28... Nb4 {[%clk 0:01:17.9]} 29. Raa1 {[%clk
0:00:32.7]} 29... Nd3 {[%clk 0:01:15.3]} 30. Ra2 {[%clk 0:00:30.1]} 30... d5
{[%clk 0:01:13.6]} 31. Bc5 {[%clk 0:00:28.9]} 31... Nxc5 {[%clk 0:01:12.9]} 0-1

[Event "Late-Titled-Tuesday-Blitz-October-10-2023"]
[Site "Chess.com"]
[Date "2023.10.10"]
[Round "9"]
[White "FaustinoOro"]
[Black "UK_23"]
[Result "1-0"]
[WhiteElo "2856"]
[BlackElo "2407"]
[TimeControl "180+1"]
[EndTime "15:38:04 PDT"]
[Termination "FaustinoOro won by resignation"]

1. Nf3 {[%clk 0:03:00.9]} 1... d5 {[%clk 0:02:59.8]} 2. e3 {[%clk 0:03:01]} 2...
Nf6 {[%clk 0:02:59.9]} 3. c4 {[%clk 0:03:00.7]} 3... e6 {[%clk 0:03:00.1]} 4. d4
{[%clk 0:02:59.3]} 4... a6 {[%clk 0:02:56.8]} 5. Nc3 {[%clk 0:02:57.6]} 5... b6
{[%clk 0:02:54]} 6. cxd5 {[%clk 0:02:57.3]} 6... exd5 {[%clk 0:02:54]} 7. Bd3
{[%clk 0:02:57.6]} 7... Bb7 {[%clk 0:02:53.2]} 8. O-O {[%clk 0:02:57.8]} 8...
Nbd7 {[%clk 0:02:53.6]} 9. Qc2 {[%clk 0:02:56.1]} 9... Bd6 {[%clk 0:02:52.6]}
10. b3 {[%clk 0:02:54.8]} 10... O-O {[%clk 0:02:52.3]} 11. Bb2 {[%clk
0:02:55.3]} 11... Re8 {[%clk 0:02:44.6]} 12. Rad1 {[%clk 0:02:52.9]} 12... Qe7
{[%clk 0:02:44.6]} 13. Bf5 {[%clk 0:02:44.8]} 13... Nf8 {[%clk 0:02:41.3]} 14.
Rfe1 {[%clk 0:02:36.4]} 14... g6 {[%clk 0:02:40.9]} 15. Bd3 {[%clk 0:02:35.8]}
15... Ne4 {[%clk 0:02:39.8]} 16. Ne2 {[%clk 0:02:26]} 16... Ne6 {[%clk
0:02:19.3]} 17. Ng3 {[%clk 0:02:23.9]} 17... f5 {[%clk 0:02:15.4]} 18. Ne5
{[%clk 0:02:15.7]} 18... Qh4 {[%clk 0:01:56.2]} 19. Bf1 {[%clk 0:01:51.8]} 19...
Rad8 {[%clk 0:01:41.4]} 20. Nf3 {[%clk 0:01:40]} 20... Qe7 {[%clk 0:01:40.6]}
21. Rc1 {[%clk 0:01:40.3]} 21... h5 {[%clk 0:01:38.1]} 22. Ne5 {[%clk
0:01:36.4]} 22... Qf6 {[%clk 0:01:21.1]} 23. f3 {[%clk 0:01:32.4]} 23... Nxg3
{[%clk 0:01:12.4]} 24. hxg3 {[%clk 0:01:33.3]} 24... h4 {[%clk 0:01:09.2]} 25.
gxh4 {[%clk 0:01:27.5]} 25... Qxh4 {[%clk 0:01:10.1]} 26. f4 {[%clk 0:01:17.1]}
26... Kg7 {[%clk 0:01:05.4]} 27. Qf2 {[%clk 0:01:16.8]} 27... Qh6 {[%clk
0:00:59.7]} 28. Qg3 {[%clk 0:01:06.4]} 28... Rh8 {[%clk 0:00:59]} 29. Bd3 {[%clk
0:01:06.1]} 29... Rdf8 {[%clk 0:00:53.4]} 30. Kf2 {[%clk 0:01:02.9]} 30... Be7
{[%clk 0:00:51.9]} 31. Nf3 {[%clk 0:00:57.1]} 31... Kf7 {[%clk 0:00:48.8]} 32.
Rh1 {[%clk 0:00:55.4]} 32... Qxh1 {[%clk 0:00:48.2]} 33. Rxh1 {[%clk 0:00:56]}
33... Rxh1 {[%clk 0:00:48.8]} 34. Ne5+ {[%clk 0:00:56.6]} 34... Ke8 {[%clk
0:00:46.1]} 35. Qxg6+ {[%clk 0:00:56.9]} 35... Kd8 {[%clk 0:00:46.8]} 36. Qxe6
{[%clk 0:00:56.3]} 36... Bh4+ {[%clk 0:00:46.6]} 37. Ke2 {[%clk 0:00:56.2]} 1-0